bitfinex/quotes_ETHUSD_20250322
["timestamp","ask_amount","ask_price","bid_price","bid_amount"]
[1742673196285,5.54692421,1997.6,1997.3,5.76864]
[1742673196489,0.40504538,1997.4,1997.3,5.76864]
[1742673196652,5.54692421,1997.6,1997.3,5.76864]
[1742673196856,0.40504538,1997.4,1997.3,5.76864]
[1742673197056,5.54692421,1997.6,1997.3,5.76864]
[1742673197278,0.40504538,1997.4,1997.3,5.76864]
[1742673197788,5.54692421,1997.6,1997.3,5.76864]
[1742673197990,0.40504538,1997.4,1997.3,5.76864]
[1742673198193,5.54692421,1997.6,1997.3,5.76864]
[1742673198360,0.40504538,1997.4,1997.3,5.76864]
[1742673198560,5.54692421,1997.6,1997.3,5.76864]
[1742673198757,0.40504538,1997.4,1997.3,5.76864]
[1742673198962,5.54692421,1997.6,1997.3,5.76864]
[1742673199390,0.40521078,1997.5,1997.3,5.76864]
[1742673200496,0.40521078,1997.5,1997.4,5.0065]
[1742673207700,2.54692421,1997.8,1997.6,5.00583]
[1742673208075,0.40587355,1997.7,1997.5,5.00617]
[1742673209006,2.95279776,1997.7,1997.5,5.00617]
[1742673211395,2.54692421,1997.6,1997.3,5.0067]
[1742673211596,0.8029,1997.3,1997.2,26.472]
[1742673211930,5.00711,1997.2,1996.8,5.008]
[1742673212205,2.54692421,1997.0,1996.8,5.008]
[1742673212579,0.40519584,1996.9,1996.8,5.008]
[1742673213007,0.40519584,1996.9,1996.8,6.086385]
[1742673213214,5.54692421,1997.1,1996.9,5.00763]
[1742673213584,3.0,1997.1,1996.9,10.01526]
[1742673213782,3.0,1997.1,1997.0,5.00751]
[1742673213983,6.34982421,1997.3,1997.0,5.00737]
[1742673214199,6.34982421,1997.3,1997.1,5.00715]
[1742673214400,2.54692421,1997.2,1997.0,5.00737]
[1742673215078,8.04702945,1997.3,1997.0,5.00737]
[1742673216812,13.05378945,1997.3,1997.0,5.00737]
[1742673217007,14.89724771,1997.3,1996.9,5.00775]
[1742673217306,19.90419771,1997.3,1996.9,5.00775]
[1742673217508,9.25114945,1997.2,1996.8,5.008]
[1742673217697,9.25114945,1997.2,1996.8,10.0159]
[1742673218709,9.25114945,1997.2,1996.8,5.0079]
[1742673218893,5.00728,1997.1,1996.8,5.0079]
[1742673222921,0.40369401,1997.0,1996.8,10.01573]
[1742673223088,9.25114945,1997.2,1996.8,10.01573]
[1742673223294,0.40378106,1997.1,1996.8,10.01573]
[1742673223489,9.25114945,1997.2,1996.8,5.00783]
[1742673223823,0.40378106,1997.1,1996.8,5.00783]
[1742673224227,9.25114945,1997.2,1996.8,5.00783]
[1742673224395,0.4036156,1997.0,1996.8,5.00783]
[1742673224596,11.0572304,1997.2,1996.8,5.00783]
[1742673224803,0.40311804,1996.9,1996.8,5.00783]
[1742673225005,11.0572304,1997.2,1996.8,5.00783]
[1742673225203,0.40311804,1996.9,1996.8,5.00783]
[1742673225414,9.25114945,1997.2,1996.8,5.00783]
[1742673225726,11.0572304,1997.2,1996.8,5.00783]
[1742673225926,0.40344898,1997.1,1996.8,5.00783]
[1742673226122,11.0572304,1997.2,1996.8,5.00783]
[1742673226427,0.40344898,1997.1,1996.8,5.00783]
[1742673226730,0.40328352,1997.0,1996.8,5.00783]
[1742673226891,11.0572304,1997.2,1996.8,5.00783]
[1742673227089,0.40344898,1997.1,1996.8,5.00783]
[1742673227490,0.40328352,1997.0,1996.8,5.00783]
[1742673227895,0.40311804,1996.9,1996.8,5.00783]
[1742673228096,11.0572304,1997.2,1996.8,5.00783]
[1742673228624,0.40344898,1997.1,1996.8,5.00783]
[1742673228816,16.0644304,1997.2,1996.8,5.00783]
[1742673229023,0.40336193,1997.0,1996.8,5.00783]
[1742673229324,0.7816,1997.1,1996.8,5.00783]
[1742673229829,0.40340113,1997.0,1996.8,5.00783]
[1742673231233,0.40340113,1997.0,1996.7,14.64433]
[1742673232239,0.40340113,1997.0,1996.7,9.63609]
[1742673232806,0.40340113,1997.0,1996.7,14.64421]
[1742673235151,2.95033071,1997.0,1996.7,14.64421]
[1742673241431,2.95033071,1997.0,1996.8,5.00798]
[1742673245557,0.40340113,1997.0,1996.8,10.01579]
[1742673245762,7.55394958,1997.2,1996.8,5.00789]
[1742673245960,0.40328749,1997.1,1997.0,5.00738]
[1742673246138,3.0,1997.2,1997.1,5.00726]
[1742673246334,3.40376434,1997.2,1997.1,5.00726]
[1742673249670,0.40376434,1997.2,1997.1,5.00726]
[1742673249884,2.54692958,1997.4,1997.3,5.00675]
[1742673250207,2.54692958,1997.6,1997.4,5.00641]
[1742673250693,3.0,1997.5,1997.4,5.00641]
[1742673251286,3.0,1997.5,1997.3,5.00664]
[1742673251508,2.54692958,1997.5,1997.3,5.00664]
[1742673251984,2.54692958,1997.4,1997.3,5.00664]
[1742673252182,2.54692958,1997.4,1997.2,5.00698]
[1742673252884,0.40396897,1997.3,1997.2,5.00698]
[1742673257053,2.54692958,1997.5,1997.2,10.0139]
[1742673257372,2.54692958,1997.5,1997.3,5.00668]
[1742673257576,2.54692958,1997.6,1997.4,5.0064]
[1742673258878,2.54692958,1997.6,1997.4,5.00639]
[1742673259079,2.54692958,1997.8,1997.6,5.0059]
[1742673259280,2.54692958,1997.8,1997.5,5.00613]
[1742673259653,2.54692958,1997.7,1997.5,5.00613]
[1742673264880,2.54692958,1997.7,1997.5,10.01226]
[1742673265587,2.54692958,1997.8,1997.5,10.01221]
[1742673265787,2.54692958,1997.8,1997.6,5.00599]
[1742673265987,3.36672958,1997.9,1997.6,10.01186]
[1742673266476,3.36672958,1997.9,1997.7,5.00571]
[1742673266788,2.54692958,1997.9,1997.7,10.01132]
[1742673266985,5.54692958,1997.9,1997.8,5.0055]
[1742673267858,5.95313596,1997.9,1997.8,5.0055]
[1742673268054,5.95313596,1997.9,1997.7,5.00568]
[1742673268257,2.54692958,1997.8,1997.7,5.00568]
[1742673268456,2.95297063,1997.8,1997.7,5.00568]
[1742673270476,0.40604105,1997.8,1997.7,5.00568]
[1742673270675,2.95297063,1997.8,1997.7,5.00568]
[1742673273767,0.40604105,1997.8,1997.7,5.00568]
[1742673275770,2.95297063,1997.8,1997.7,5.00568]
[1742673276709,2.95297063,1997.8,1997.6,5.006]
[1742673277202,2.95297063,1997.8,1997.6,5.00591]
[1742673278208,2.95297063,1997.8,1997.6,10.01181]
[1742673278403,2.95297063,1997.8,1997.7,5.00575]
[1742673278614,0.40604105,1997.8,1997.7,5.00575]
[1742673286423,2.95297063,1997.8,1997.7,5.00575]
[1742673286633,3.75567063,1997.8,1997.6,5.0059]
[1742673292416,2.54692958,1997.7,1997.5,9.62619]
[1742673292622,2.54692958,1997.6,1997.5,9.62519]
[1742673292821,2.95421693,1997.6,1997.5,9.62519]
[1742673293032,0.40728735,1997.6,1997.5,9.62519]
[1742673293231,2.54692958,1997.7,1997.5,9.62519]
[1742673293436,0.40728735,1997.6,1997.5,9.62519]
[1742673293611,2.54692958,1997.7,1997.5,14.63132]
[1742673293810,0.40728735,1997.6,1997.5,14.63132]
[1742673294007,2.54692958,1997.7,1997.5,9.62513]
[1742673294233,0.40728735,1997.6,1997.5,5.00613]
[1742673294420,2.54692958,1997.7,1997.5,5.00613]
[1742673294630,0.40728735,1997.6,1997.5,5.00613]
[1742673294941,2.54692958,1997.7,1997.5,5.00613]
[1742673295139,0.40728735,1997.6,1997.5,5.00613]
[1742673295528,2.54692958,1997.7,1997.5,5.00613]
[1742673295842,0.40728735,1997.6,1997.5,5.00613]
[1742673296057,2.54692958,1997.7,1997.5,5.00613]
[1742673296352,0.40728735,1997.6,1997.5,5.00613]
[1742673296759,2.54692958,1997.7,1997.5,5.00613]
[1742673296966,0.40728735,1997.6,1997.5,5.00613]
[1742673297268,2.54692958,1997.7,1997.5,5.00613]
[1742673297464,0.40728735,1997.6,1997.5,5.00613]
[1742673297626,2.54692958,1997.7,1997.5,10.01229]
[1742673297825,0.40728735,1997.6,1997.5,10.01229]
[1742673298075,2.54692958,1997.7,1997.5,10.01229]
[1742673298254,0.40728735,1997.6,1997.5,10.01229]
[1742673298456,2.54692958,1997.7,1997.5,10.01229]
[1742673298658,0.40728735,1997.6,1997.5,10.01229]
[1742673298828,2.54692958,1997.7,1997.5,10.01229]
[1742673299030,0.40728735,1997.6,1997.5,5.00613]
[1742673299333,2.54692958,1997.7,1997.5,5.00608]
[1742673299671,0.40728735,1997.6,1997.5,5.00608]
[1742673299872,2.54692958,1997.7,1997.5,5.00608]
[1742673300042,0.40728735,1997.6,1997.5,5.00608]
[1742673300246,2.54692958,1997.6,1997.5,5.00608]
[1742673300571,2.95421693,1997.6,1997.5,5.00608]
[1742673305242,2.95421693,1997.6,1997.4,5.0065]
[1742673306231,2.95421693,1997.6,1997.4,10.01292]
[1742673306430,2.95421693,1997.6,1997.4,5.00642]
[1742673306689,3.73821693,1997.6,1997.4,5.00642]
[1742673307459,3.73821693,1997.6,1997.4,5.00639]
[1742673308158,2.54692958,1997.5,1997.4,5.00639]
[1742673308550,2.95376116,1997.5,1997.4,5.00639]
[1742673309139,0.40683158,1997.5,1997.4,5.00639]
[1742673309364,0.40683158,1997.5,1997.4,5.76879]
[1742673309738,2.54692958,1997.8,1997.7,5.00575]
[1742673310247,2.95419502,1997.8,1997.7,5.00575]
[1742673314216,2.95419502,1997.8,1997.6,5.00596]
[1742673314697,2.54692958,1997.7,1997.6,5.00596]
[1742673315054,2.95438229,1997.7,1997.6,5.00596]
[1742673317065,2.95438229,1997.7,1997.5,5.00605]
[1742673317306,2.54692958,1997.6,1997.4,5.00637]
[1742673317610,8.74291155,1997.5,1997.2,26.48208718]
[1742673317789,2.54692958,1997.3,1997.2,26.48208718]
[1742673318001,2.95372073,1997.3,1997.2,26.48208718]
[1742673318584,0.40679115,1997.3,1997.2,26.48208718]
[1742673318784,0.40679115,1997.3,1997.2,31.48908718]
[1742673326419,5.54692958,1997.6,1997.3,5.00657]
[1742673326627,0.40676928,1997.5,1997.3,10.01316]
[1742673327238,0.40676928,1997.5,1997.3,5.00657]
[1742673327528,2.95369886,1997.5,1997.3,5.00657]
[1742673327738,2.54692958,1997.4,1997.3,5.00657]
[1742673328033,0.40660388,1997.4,1997.3,5.00657]
[1742673330811,3.0,1997.6,1997.5,5.00625]
[1742673331012,3.40639526,1997.6,1997.5,5.00625]
[1742673332823,0.40639526,1997.6,1997.5,5.00625]
[1742673332988,2.54692958,1997.8,1997.5,5.00625]
[1742673333189,2.54692958,1997.7,1997.5,5.00625]
[1742673333412,2.95373918,1997.7,1997.5,5.00625]
[1742673336908,2.95373918,1997.7,1997.5,10.01233]
[1742673337224,2.95373918,1997.7,1997.6,5.006]
[1742673337225,0.4068096,1997.7,1997.6,5.006]
[1742673339597,0.4068096,1997.7,1997.5,5.00608]
[1742673339598,2.95373918,1997.7,1997.5,5.00608]
[1742673343543,8.30411958,1997.6,1997.2,31.48908718]
[1742673343846,0.40695376,1997.5,1997.4,5.83648]
[1742673344044,2.54692958,1997.7,1997.5,5.00613]
[1742673344349,0.40711914,1997.6,1997.5,5.00613]
[1742673344551,5.54692958,1997.8,1997.6,5.00598]
[1742673346428,5.54692958,1997.8,1997.5,5.00625]
[1742673347531,2.54692958,1997.7,1997.5,5.00625]
[1742673349274,2.54692958,1997.7,1997.5,10.01234]
[1742673349550,2.54692958,1997.6,1997.4,5.83653]
[1742673349755,2.54692958,1997.6,1997.4,5.00643]
[1742673350764,2.54692958,1997.5,1997.3,5.00675]
[1742673355758,3.29802958,1997.6,1997.3,5.00675]
[1742673356263,2.54692958,1997.5,1997.3,5.00675]
[1742673356447,3.29802958,1997.6,1997.3,5.00675]
[1742673356949,2.54692958,1997.5,1997.3,5.00675]
[1742673357863,0.40666389,1997.4,1997.3,5.00675]
[1742673359560,2.95359347,1997.4,1997.3,5.00675]
[1742673361132,0.40666389,1997.4,1997.3,5.00675]
[1742673366456,2.95359347,1997.4,1997.2,36.10906718]
[1742673367363,0.40666389,1997.4,1997.2,36.10906718]
[1742673367664,2.95359347,1997.4,1997.2,36.10906718]
[1742673369564,0.40666389,1997.4,1997.2,9.64197718]
[1742673370368,0.40666389,1997.4,1997.3,5.00675]
[1742673373584,2.95359347,1997.4,1997.3,5.00675]
[1742673374782,2.95359347,1997.4,1997.2,9.64197718]
[1742673375153,2.54692958,1997.3,1997.2,0.01508718]
[1742673375368,3.2484969,1997.3,1997.2,0.01508718]
[1742673375670,12.0068469,1997.3,1997.2,0.01508718]
[1742673377672,5.95313755,1997.3,1997.2,5.02208718]
[1742673378260,0.40620797,1997.3,1997.2,5.02208718]
[1742673378641,2.54692958,1997.5,1997.3,5.00667]
[1742673379640,2.54692958,1997.5,1997.3,5.00661]
[1742673380074,2.54692958,1997.5,1997.3,10.01326]
[1742673380288,2.54692958,1997.5,1997.3,5.00661]
[1742673380648,3.0,1997.5,1997.4,5.0065]
[1742673382725,3.0,1997.4,1997.3,5.00661]
[1742673384608,2.54692958,1997.6,1997.3,5.00661]
[1742673386892,2.54692958,1997.6,1997.3,5.00658]
[1742673387212,2.54692958,1997.8,1997.6,5.006]
[1742673387510,3.0,1997.7,1997.6,5.006]
[1742673387866,3.40632774,1997.7,1997.6,5.006]
[1742673389073,2.95325732,1997.7,1997.6,5.006]
[1742673391008,3.40632774,1997.7,1997.6,5.006]
[1742673392608,2.95325732,1997.7,1997.6,5.006]
[1742673394696,3.40632774,1997.7,1997.6,5.006]
[1742673395006,0.40632774,1997.7,1997.6,5.006]
[1742673395211,2.54692958,1997.9,1997.7,5.00565]
[1742673395523,0.40747061,1997.8,1997.7,5.00565]
[1742673395723,5.95440019,1997.8,1997.7,5.00565]
[1742673395925,3.40747061,1997.8,1997.7,5.00565]
[1742673396107,5.95440019,1997.8,1997.7,5.00565]
[1742673409726,5.95440019,1997.8,1997.6,9.626]
[1742673410432,2.54692958,1997.7,1997.4,32.29348]
[1742673410593,0.40702001,1997.6,1997.4,41.91881]
[1742673410795,2.54692958,1997.7,1997.5,5.00625]
[1742673411008,0.40702001,1997.6,1997.5,5.00625]
[1742673411321,2.54692958,1997.7,1997.5,5.00625]
[1742673411623,0.40702001,1997.6,1997.5,5.00625]
[1742673411828,5.54692958,1997.8,1997.6,5.00594]
[1742673412020,0.40718538,1997.7,1997.6,5.00594]
[1742673412224,0.40718538,1997.7,1997.6,5.76364]
[1742673420133,0.40718538,1997.7,1997.6,5.00594]
[1742673421531,2.95411496,1997.7,1997.6,5.00594]
[1742673422542,2.95411496,1997.7,1997.5,5.00625]
[1742673426343,0.40718538,1997.7,1997.5,10.01236]
[1742673427035,0.40718538,1997.7,1997.6,5.006]
[1742673427737,2.95411496,1997.7,1997.5,5.00611]
[1742673435951,2.95411496,1997.7,1997.4,5.00649]
[1742673436257,2.95411496,1997.7,1997.4,9.62549]
[1742673437157,2.95411496,1997.7,1997.4,14.63188]
[1742673437520,2.95411496,1997.7,1997.4,9.62539]
[1742673437743,2.95411496,1997.7,1997.4,14.63178]
[1742673438653,2.95411496,1997.7,1997.4,9.62539]
[1742673438853,2.95411496,1997.7,1997.5,5.00625]
[1742673441550,2.95411496,1997.7,1997.4,9.62539]
[1742673441864,2.54692958,1997.6,1997.4,9.62539]
[1742673442041,2.95363834,1997.6,1997.4,9.62539]
[1742673446665,2.95363834,1997.6,1997.4,14.63174]
[1742673449371,2.95363834,1997.6,1997.5,5.00625]
[1742673450086,0.40670876,1997.6,1997.5,5.00625]
[1742673450245,5.54692958,1997.8,1997.5,10.0125]
[1742673450450,0.4067272,1997.6,1997.5,10.0125]
[1742673450661,5.54692958,1997.8,1997.5,10.0125]
[1742673450984,0.4067272,1997.6,1997.5,10.0125]
[1742673451179,2.54692958,1997.7,1997.5,10.0125]
[1742673451384,0.4067272,1997.6,1997.5,5.00625]
[1742673451767,2.54692958,1997.7,1997.6,5.006]
[1742673454183,2.54692958,1997.7,1997.5,5.00625]
[1742673454385,2.54692958,1997.6,1997.5,5.00625]
[1742673455588,2.54692958,1997.7,1997.5,5.00625]
[1742673456977,2.54692958,1997.7,1997.5,10.01234]
[1742673459697,2.54692958,1997.7,1997.6,5.006]
[1742673460295,3.0,1997.8,1997.7,5.00575]
[1742673460658,3.40712017,1997.8,1997.7,5.00575]
[1742673462301,5.95404975,1997.8,1997.7,5.00575]
[1742673474028,2.95404975,1997.8,1997.7,5.00575]
[1742673480541,5.95404975,1997.8,1997.7,5.00575]
[1742673485047,3.40712017,1997.8,1997.7,6.083885]
[1742673485345,3.40712017,1997.8,1997.7,5.00575]
[1742673485642,3.40730923,1997.8,1997.7,5.00575]
[1742673487773,0.40730923,1997.8,1997.7,5.00575]
[1742673488073,2.54692958,1998.1,1997.9,5.00507]
[1742673488423,0.40763988,1998.0,1997.9,5.00507]
[1742673490760,0.24988269,1998.7,1998.5,5.00375]
[1742673490761,2.54692958,1998.6,1998.5,5.00375]
[1742673491129,2.95556102,1998.6,1998.5,5.00375]
[1742673492843,2.95556102,1998.6,1998.4,5.004]
[1742673493044,2.54692958,1998.5,1998.4,5.004]
[1742673493231,2.95531745,1998.5,1998.4,5.004]
[1742673494467,0.40838787,1998.5,1998.4,5.004]
[1742673496077,2.95531745,1998.5,1998.4,5.004]
[1742673501477,0.40838787,1998.5,1998.4,5.004]
[1742673509096,2.54692958,1998.7,1998.6,5.0035]
[1742673510225,2.54692958,1998.8,1998.6,5.0035]
[1742673511431,2.54692958,1998.8,1998.5,5.00374]
[1742673511432,2.54692958,1998.7,1998.5,5.00374]
[1742673511601,2.54692958,1998.6,1998.4,5.00398]
[1742673511795,2.54692958,1998.5,1998.4,5.00398]
[1742673522837,2.9583452,1998.5,1998.4,5.00398]
[1742673527438,0.41141562,1998.5,1998.4,5.00398]
[1742673527737,2.54692958,1998.7,1998.6,5.0035]
[1742673528103,0.8047,1998.9,1998.7,5.00325]
[1742673528298,2.54692958,1998.8,1998.6,5.00342]
[1742673528707,2.54692958,1998.7,1998.6,5.00342]
[1742673537843,2.95890363,1998.7,1998.6,5.00342]
[1742673539043,2.95890363,1998.7,1998.5,5.00368]
[1742673539426,2.54692958,1998.6,1998.5,5.00368]
[1742673539613,2.95875917,1998.6,1998.5,5.00368]
[1742673543923,2.45875917,1998.6,1998.5,5.00368]
[1742673545463,1.95875917,1998.6,1998.5,5.00368]
[1742673545827,1.45875917,1998.6,1998.5,5.00368]
[1742673546028,0.41182959,1998.6,1998.5,5.00368]
[1742673547770,2.54692958,1998.8,1998.7,5.00325]
[1742673549780,8.0023,1999.1,1998.7,10.83653]
[1742673549986,8.0023,1999.1,1998.7,5.00308]
[1742673549987,2.54692958,1998.8,1998.7,5.00308]
[1742673551581,2.54692958,1998.8,1998.6,9.61841]
[1742673551774,2.54692958,1998.7,1998.6,5.00341]
[1742673552877,2.95892438,1998.7,1998.6,5.00341]
[1742673554587,0.4119948,1998.7,1998.6,5.00341]
[1742673554750,2.95892438,1998.7,1998.6,5.00341]
[1742673582977,0.4119948,1998.7,1998.6,5.00341]
[1742673586190,0.4119948,1998.7,1998.5,9.61873]
[1742673586480,2.95892438,1998.7,1998.5,9.61873]
[1742673586640,2.95892438,1998.7,1998.5,14.62234]
[1742673587789,2.95892438,1998.7,1998.5,9.61861]
[1742673591898,2.54692958,1998.6,1998.5,9.61861]
[1742673592049,2.95892438,1998.7,1998.5,9.61861]
[1742673592250,0.37589992,1998.6,1998.5,9.61861]
[1742673596299,0.32589992,1998.6,1998.5,9.61861]
[1742673597494,0.32589992,1998.6,1998.5,4.615]
[1742673600808,2.8728295,1998.6,1998.5,4.615]
[1742673601155,2.8728295,1998.6,1998.3,5.77603]
[1742673601360,2.54692958,1998.4,1998.3,9.61923]
[1742673601560,2.54692958,1998.5,1998.3,9.61923]
[1742673602010,2.54692958,1998.5,1998.3,14.62337]
[1742673602211,2.54692958,1998.5,1998.3,9.61914]
[1742673602360,2.54692958,1998.4,1998.3,5.00414]
[1742673602561,2.54692958,1998.4,1998.2,36.07347]
[1742673602761,2.54692958,1998.3,1998.2,36.07347]
[1742673603091,2.54692958,1998.4,1998.2,36.07347]
[1742673603294,2.54692958,1998.3,1998.2,26.454]
[1742673603823,3.34732958,1998.3,1998.2,26.454]
[1742673605900,2.54692958,1998.4,1998.2,26.454]
[1742673606229,3.0,1998.5,1998.3,5.00408]
[1742673606436,3.32589992,1998.6,1998.3,5.77318]
[1742673606593,0.32589992,1998.6,1998.3,15.39228]
[1742673606794,0.32589992,1998.6,1998.3,10.38818]
[1742673607594,0.32589992,1998.6,1998.5,5.00375]
[1742673609514,0.32589992,1998.6,1998.4,5.05396606]
[1742673609724,2.8728295,1998.6,1998.4,5.00393]
[1742673610048,0.32589992,1998.6,1998.4,5.00393]
[1742673611204,2.8728295,1998.6,1998.4,5.00393]
[1742673612940,0.32589992,1998.6,1998.4,5.00393]
[1742673613811,0.32589992,1998.6,1998.4,10.00776]
[1742673614254,0.32589992,1998.6,1998.4,5.00383]
[1742673614453,0.32589992,1998.6,1998.5,0.0500339]
[1742673614748,0.32589992,1998.6,1998.5,6.27153639]
[1742673615283,0.32589992,1998.6,1998.5,8.81846597]
[1742673617640,2.54692958,1999.0,1998.7,5.00316]
[1742673617962,0.3733463,1998.9,1998.8,4.615]
[1742673618940,0.3733463,1998.9,1998.8,12.92732958]
[1742673619136,0.3733463,1998.9,1998.8,13.76671008]
[1742673619337,2.54692958,1999.3,1999.1,5.0022]
[1742673619537,0.37360675,1999.2,1999.1,5.00211]
[1742673619965,0.37360675,1999.2,1999.0,5.00247]
[1742673621774,0.37360675,1999.2,1999.1,5.76465]
[1742673622076,0.37360675,1999.2,1999.1,6.27003639]
[1742673622276,2.54692958,1999.5,1999.2,5.00198]
[1742673622572,0.37331038,1999.4,1999.2,9.61598]
[1742673623875,2.54692958,1999.3,1999.2,4.614]
[1742673624283,2.92151186,1999.3,1999.2,4.614]
[1742673624579,0.37458228,1999.3,1999.2,5.4533805]
[1742673624981,2.54692958,1999.4,1999.2,5.4533805]
[1742673625278,2.54692958,1999.7,1999.4,5.00145]
[1742673625778,0.3763254,1999.6,1999.3,5.00173]
[1742673626076,0.3763254,1999.6,1999.2,16.2195205]
[1742673626276,2.54692958,1999.7,1999.3,0.50538639]
[1742673626788,0.3763254,1999.6,1999.3,5.55695756]
[1742673627081,0.3763254,1999.6,1999.4,5.00129]
[1742673627284,0.3761603,1999.5,1999.4,5.00129]
[1742673627580,0.7865,1999.7,1999.3,5.50705639]
[1742673627765,0.37619952,1999.5,1999.4,0.55070564]
[1742673628079,0.7865,1999.7,1999.4,0.55070564]
[1742673628281,4.60984124,1999.6,1999.2,4.614]
[1742673628482,0.7865,1999.5,1999.2,4.613]
[1742673628777,0.37644866,1999.4,1999.2,4.613]
[1742673633900,0.37644866,1999.4,1999.2,4.66208676]
[1742673634768,0.37644866,1999.4,1999.2,9.66406676]
[1742673637125,4.23347662,1999.6,1999.2,9.71408052]
[1742673637291,0.37694515,1999.5,1999.2,9.71408052]
[1742673637723,0.7865,1999.7,1999.2,9.71408052]
[1742673638016,0.37711025,1999.6,1999.3,5.00175]
[1742673638411,3.7865,1999.7,1999.3,5.00175]
[1742673638611,0.37694515,1999.5,1999.2,9.71403048]
[1742673638799,3.7865,1999.7,1999.2,9.71403048]
[1742673639002,0.37678004,1999.4,1999.2,9.71403048]
[1742673639320,0.37663562,1999.3,1999.2,9.71403048]
[1742673639532,3.7865,1999.7,1999.2,9.71403048]
[1742673639734,0.37713096,1999.6,1999.2,9.71403048]
[1742673639899,3.7865,1999.7,1999.2,9.71403048]
[1742673640095,0.37713096,1999.6,1999.2,14.71586048]
[1742673640301,3.7865,1999.7,1999.2,9.66391676]
[1742673640500,0.37717012,1999.6,1999.2,9.71393048]
[1742673640692,3.7865,1999.7,1999.2,9.71393048]
[1742673640892,0.37717012,1999.6,1999.2,9.71393048]
[1742673641087,4.23347662,1999.6,1999.2,9.66391676]
[1742673641310,1.1969267,1999.5,1999.2,4.66208676]
[1742673642457,1.1969267,1999.5,1999.2,9.66402676]
[1742673642652,0.3769267,1999.5,1999.2,9.71404048]
[1742673642834,0.3769267,1999.5,1999.3,0.97140405]
[1742673643027,0.3769267,1999.5,1999.3,5.00171]
[1742673643349,0.3769267,1999.5,1999.4,5.0015]
[1742673643749,0.3769267,1999.5,1999.3,5.00162]
[1742673644975,0.3769267,1999.5,1999.3,10.00321]
[1742673645552,0.3769267,1999.5,1999.3,5.00159]
[1742673645754,0.82,1999.9,1999.5,5.00103]
[1742673645941,0.37842293,1999.8,1999.5,5.00103]
[1742673646249,0.82,1999.9,1999.5,5.00103]
[1742673646451,0.37895837,1999.7,1999.5,5.00103]
[1742673646655,0.82,1999.9,1999.5,5.00103]
[1742673646824,0.37898934,1999.6,1999.5,5.00103]
[1742673647153,0.37902853,1999.6,1999.5,5.00103]
[1742673647355,0.82,1999.9,1999.5,5.00103]
[1742673647557,0.37931933,1999.8,1999.5,5.00103]
[1742673647732,0.82,1999.9,1999.5,5.00103]
[1742673647933,0.37931933,1999.8,1999.5,5.00103]
[1742673648138,0.82,1999.9,1999.5,5.00103]
[1742673648357,0.3790845,1999.8,1999.6,10.42371]
[1742673648545,3.0,2000.0,1999.6,10.42371]
[1742673648743,0.37924948,1999.9,1999.6,10.42371]
[1742673649461,0.37924948,1999.9,1999.7,5.00075]
[1742673650630,0.37924948,1999.9,1999.8,5.0005]
[1742673651125,6.27e-06,2000.2,1999.9,5.00013]
[1742673651640,6.27e-06,2000.2,1999.8,5.8114]
[1742673655232,6.27e-06,2000.2,1999.8,5.81121]
[1742673655431,6.27e-06,2000.2,1999.9,5.581281]
[1742673655664,0.38222321,2000.1,1999.9,5.581281]
[1742673655989,6.27e-06,2000.2,1999.9,5.581281]
[1742673656138,0.38205831,2000.0,1999.9,0.581121]
[1742673656463,6.27e-06,2000.2,1999.9,0.581121]
[1742673656634,0.38205831,2000.0,1999.9,0.581121]
[1742673656835,6.27e-06,2000.2,1999.9,0.581121]
[1742673657035,0.38205831,2000.0,1999.9,0.581121]
[1742673657243,6.27e-06,2000.2,1999.9,0.581121]
[1742673657762,0.38222321,2000.1,1999.9,0.581121]
[1742673657966,6.27e-06,2000.2,1999.9,0.581121]
[1742673658186,0.38222321,2000.1,1999.9,0.581121]
[1742673658332,0.752,2000.1,1999.7,31.44372]
[1742673658533,3.38205831,2000.0,1999.7,26.443]
[1742673658749,0.38205831,2000.0,1999.8,0.7796]
[1742673659033,0.38205831,2000.0,1999.8,5.78007]
[1742673662169,0.38205831,2000.0,1999.8,5.830068]
[1742673662468,0.38205831,2000.0,1999.9,0.5830068]
[1742673662668,0.38205831,2000.0,1999.9,5.5832568]
[1742673662973,0.38205831,2000.0,1999.9,6.3628568]
[1742673663169,6.27e-06,2000.2,1999.9,6.3628568]
[1742673663336,0.38300496,2000.1,2000.0,4.612]
[1742673663664,6.27e-06,2000.2,2000.0,4.612]
[1742673663874,0.38300496,2000.1,2000.0,4.612]
[1742673664240,3.00000627,2000.2,2000.0,4.612]
[1742673664571,0.38366948,2000.1,2000.0,4.612]
[1742673664771,3.00000627,2000.2,2000.0,4.612]
[1742673665089,0.38366948,2000.1,2000.0,4.612]
[1742673665385,3.00000627,2000.2,2000.0,4.612]
[1742673665590,0.38366948,2000.1,2000.0,4.612]
[1742673665871,0.752,2000.1,2000.0,4.612]
[1742673666074,8.3691461,2000.1,2000.0,4.612]
[1742673667338,0.752,1999.9,1999.7,26.443]
[1742673667538,7.61665139,1999.8,1999.7,26.443]
[1742673667739,13.36915139,1999.8,1999.7,26.443]
[1742673667950,13.36915139,1999.8,1999.4,4.611]
[1742673668678,4.23347662,1999.6,1999.4,4.611]
[1742673668974,0.38205594,1999.5,1999.4,4.611]
[1742673669140,1.13405594,1999.5,1999.4,4.611]
[1742673670282,1.13405594,1999.5,1999.1,32.21974]
[1742673670455,1.13405594,1999.5,1999.2,4.611]
[1742673678495,1.13405594,1999.5,1999.1,32.21973]
[1742673678496,4.23347662,1999.4,1999.1,26.438]
[1742673678665,4.23347662,1999.4,1999.1,31.05]
[1742673678881,0.33077598,1999.3,1999.1,26.438]
[1742673679198,4.23347662,1999.4,1999.1,26.438]
[1742673679515,0.37550299,1999.3,1999.1,26.438]
[1742673679874,4.23347662,1999.4,1999.1,26.438]
[1742673680074,0.37533795,1999.2,1999.1,26.438]
[1742673680272,4.23347662,1999.2,1999.1,26.438]
[1742673680605,4.60881457,1999.2,1999.1,26.438]
[1742673682603,13.65193303,1999.2,1999.1,26.438]
[1742673682808,14.45253303,1999.2,1999.1,26.438]
[1742673685516,3.0,1999.1,1998.7,4.613]
[1742673685811,0.37309706,1999.0,1998.7,4.613]
[1742673687780,0.37309706,1999.0,1998.9,5.76845]
[1742673687979,0.8103,1999.5,1999.3,5.00154]